Workbook

Sheet 成绩册
A1: 黔东南州2023年秋季企事业单位公开招聘应征入伍大学生毕业生综合成绩及排名一览表
A2: 姓名 | B2: 准考证号 | C2: 报考单位名称 | D2: 报考职位代码 | E2: 报考职位名称 | F2: 笔试成绩 | G2: 笔试成绩占比 | H2: 面试成绩 | I2: 面试成绩占比 | J2: 综合成绩 | K2: 排名 | L2: 备注
A3: 顾劲男 | B3: 202380100118 | C3: 凯里市 | D3: 1001 | E3: 县乡事业单位管理岗位 | F3: =VLOOKUP(B3,[1]成绩册!$C$1:$J$65536,8,0) -> 74.15 | G3: 60% | H3: 85.8 | I3: 40% | J3: =F3*G3+H3*I3 -> 78.81 | K3: 1
A4: 樊雪嫣 | B4: 202380101001 | C4: 凯里市 | D4: 1001 | E4: 县乡事业单位管理岗位 | F4: =VLOOKUP(B4,[1]成绩册!$C$1:$J$65536,8,0) -> 69.48 | G4: 60% | H4: 84.8 | I4: 40% | J4: 75.61 | K4: 2
A5: 金洁 | B5: 202380100316 | C5: 凯里市 | D5: 1001 | E5: 县乡事业单位管理岗位 | F5: =VLOOKUP(B5,[1]成绩册!$C$1:$J$65536,8,0) -> 67.67 | G5: 60% | H5: 81.8 | I5: 40% | J5: 73.32 | K5: 3
A6: 张华君 | B6: 202380100618 | C6: 凯里市 | D6: 1001 | E6: 县乡事业单位管理岗位 | F6: =VLOOKUP(B6,[1]成绩册!$C$1:$J$65536,8,0) -> 62.80 | G6: 60% | H6: 83.2 | I6: 40% | J6: 70.96 | K6: 4
A7: 龙朋生 | B7: 202380100210 | C7: 凯里市 | D7: 1001 | E7: 县乡事业单位管理岗位 | F7: =VLOOKUP(B7,[1]成绩册!$C$1:$J$65536,8,0) -> 65.33 | G7: 60% | H7: 78 | I7: 40% | J7: 70.40 | K7: 5
A8: 姚法龙 | B8: 202380100528 | C8: 凯里市 | D8: 1001 | E8: 县乡事业单位管理岗位 | F8: =VLOOKUP(B8,[1]成绩册!$C$1:$J$65536,8,0) -> 61.21 | G8: 60% | H8: 74.6 | I8: 40% | J8: 66.57 | K8: 6
A9: 杨正彬 | B9: 202380100804 | C9: 凯里市 | D9: 1001 | E9: 县乡事业单位管理岗位 | F9: =VLOOKUP(B9,[1]成绩册!$C$1:$J$65536,8,0) -> 59.58 | G9: 60% | H9: 75.8 | I9: 40% | J9: 66.07 | K9: 7
A10: 石政权 | B10: 202380101012 | C10: 凯里市 | D10: 1001 | E10: 县乡事业单位管理岗位 | F10: =VLOOKUP(B10,[1]成绩册!$C$1:$J$65536,8,0) -> 59.48 | G10: 60% | H10: 71 | I10: 40% | J10: 64.09 | K10: 8
A11: 顾清华 | B11: 202380101304 | C11: 凯里市 | D11: 1001 | E11: 县乡事业单位管理岗位 | F11: =VLOOKUP(B11,[1]成绩册!$C$1:$J$65536,8,0) -> 56.25 | G11: 60% | H11: 74.2 | I11: 40% | J11: 63.43 | K11: 9
A12: 文寅 | B12: 202380100415 | C12: 凯里市 | D12: 1001 | E12: 县乡事业单位管理岗位 | F12: =VLOOKUP(B12,[1]成绩册!$C$1:$J$65536,8,0) -> 56.28 | G12: 60% | H12: 71.2 | I12: 40% | J12: 62.25 | K12: 10
A13: 冉治华 | B13: 202380100908 | C13: 凯里市 | D13: 1001 | E13: 县乡事业单位管理岗位 | F13: =VLOOKUP(B13,[1]成绩册!$C$1:$J$65536,8,0) -> 68.34 | G13: 60% | H13: 0 | I13: 40% | L13: 缺考
A14: 赵蔓霖 | B14: 202380100712 | C14: 凯里市 | D14: 1001 | E14: 县乡事业单位管理岗位 | F14: =VLOOKUP(B14,[1]成绩册!$C$1:$J$65536,8,0) -> 64.68 | G14: 60% | H14: 0 | I14: 40% | L14: 放弃
A15: 文祥宇 | B15: 202380100620 | C15: 丹寨县 | D15: 1002 | E15: 县乡事业单位管理岗位 | F15: =VLOOKUP(B15,[1]成绩册!$C$1:$J$65536,8,0) -> 55.49 | G15: 60% | H15: 74 | I15: 40% | J15: =F15*G15+H15*I15 -> 62.89 | K15: 1
A16: 熊远学 | B16: 202380101006 | C16: 丹寨县 | D16: 1002 | E16: 县乡事业单位管理岗位 | F16: =VLOOKUP(B16,[1]成绩册!$C$1:$J$65536,8,0) -> 52.17 | G16: 60% | H16: 71.6 | I16: 40% | J16: =F16*G16+H16*I16 -> 59.94 | K16: 2
A17: 王秋 | B17: 202380101422 | C17: 丹寨县 | D17: 1002 | E17: 县乡事业单位管理岗位 | F17: =VLOOKUP(B17,[1]成绩册!$C$1:$J$65536,8,0) -> 54.62 | G17: 60% | H17: 0 | I17: 40% | L17: 缺考
A18: 吴桐 | B18: 202380100112 | C18: 麻江县 | D18: 1003 | E18: 县乡事业单位管理岗位 | F18: =VLOOKUP(B18,[1]成绩册!$C$1:$J$65536,8,0) -> 66.17 | G18: 60% | H18: 75.4 | I18: 40% | J18: =F18*G18+H18*I18 -> 69.86 | K18: 1
A19: 粟元林 | B19: 202380100320 | C19: 麻江县 | D19: 1003 | E19: 县乡事业单位管理岗位 | F19: =VLOOKUP(B19,[1]成绩册!$C$1:$J$65536,8,0) -> 60.43 | G19: 60% | H19: 79 | I19: 40% | J19: =F19*G19+H19*I19 -> 67.86 | K19: 2
A20: 陆先红 | B20: 202380100230 | C20: 麻江县 | D20: 1003 | E20: 县乡事业单位管理岗位 | F20: =VLOOKUP(B20,[1]成绩册!$C$1:$J$65536,8,0) -> 63.26 | G20: 60% | H20: 70.2 | I20: 40% | J20: =F20*G20+H20*I20 -> 66.04 | K20: 3
A21: 宋波 | B21: 202380101216 | C21: 麻江县 | D21: 1003 | E21: 县乡事业单位管理岗位 | F21: =VLOOKUP(B21,[1]成绩册!$C$1:$J$65536,8,0) -> 59.29 | G21: 60% | H21: 72.2 | I21: 40% | J21: =F21*G21+H21*I21 -> 64.45 | K21: 4
A22: 罗勋 | B22: 202380101101 | C22: 麻江县 | D22: 1003 | E22: 县乡事业单位管理岗位 | F22: =VLOOKUP(B22,[1]成绩册!$C$1:$J$65536,8,0) -> 54.67 | G22: 60% | H22: 73.4 | I22: 40% | J22: =F22*G22+H22*I22 -> 62.16 | K22: 5
A23: 黄启成 | B23: 202380100605 | C23: 麻江县 | D23: 1003 | E23: 县乡事业单位管理岗位 | F23: =VLOOKUP(B23,[1]成绩册!$C$1:$J$65536,8,0) -> 57.10 | G23: 60% | H23: 0 | I23: 40% | L23: 缺考
A24: 彭俊奇 | B24: 202380100327 | C24: 黄平县 | D24: 1004 | E24: 县乡事业单位管理岗位 | F24: =VLOOKUP(B24,[1]成绩册!$C$1:$J$65536,8,0) -> 70.71 | G24: 60% | H24: 79.8 | I24: 40% | J24: =F24*G24+H24*I24 -> 74.35 | K24: 1
A25: 肖永康 | B25: 202380100707 | C25: 黄平县 | D25: 1004 | E25: 县乡事业单位管理岗位 | F25: =VLOOKUP(B25,[1]成绩册!$C$1:$J$65536,8,0) -> 68.01 | G25: 60% | H25: 80.2 | I25: 40% | J25: 72.89 | K25: 2
A26: 杨谦 | B26: 202380101425 | C26: 黄平县 | D26: 1004 | E26: 县乡事业单位管理岗位 | F26: =VLOOKUP(B26,[1]成绩册!$C$1:$J$65536,8,0) -> 65.06 | G26: 60% | H26: 80.8 | I26: 40% | J26: 71.36 | K26: 3
A27: 张鸿森 | B27: 202380100801 | C27: 黄平县 | D27: 1004 | E27: 县乡事业单位管理岗位 | F27: =VLOOKUP(B27,[1]成绩册!$C$1:$J$65536,8,0) -> 58.45 | G27: 60% | H27: 84.2 | I27: 40% | J27: 68.75 | K27: 4
A28: 李发发 | B28: 202380100924 | C28: 黄平县 | D28: 1004 | E28: 县乡事业单位管理岗位 | F28: =VLOOKUP(B28,[1]成绩册!$C$1:$J$65536,8,0) -> 59.83 | G28: 60% | H28: 80.6 | I28: 40% | J28: 68.14 | K28: 5
A29: 张兴贵 | B29: 202380100525 | C29: 黄平县 | D29: 1004 | E29: 县乡事业单位管理岗位 | F29: =VLOOKUP(B29,[1]成绩册!$C$1:$J$65536,8,0) -> 61.62 | G29: 60% | H29: 75.6 | I29: 40% | J29: 67.21 | K29: 6
A30: 万成友 | B30: 202380100929 | C30: 黄平县 | D30: 1004 | E30: 县乡事业单位管理岗位 | F30: =VLOOKUP(B30,[1]成绩册!$C$1:$J$65536,8,0) -> 59.24 | G30: 60% | H30: 73.8 | I30: 40% | J30: 65.06 | K30: 7
A31: 王乐 | B31: 202380100504 | C31: 黄平县 | D31: 1004 | E31: 县乡事业单位管理岗位 | F31: =VLOOKUP(B31,[1]成绩册!$C$1:$J$65536,8,0) -> 57.12 | G31: 60% | H31: 68.6 | I31: 40% | J31: 61.71 | K31: 8
A32: 潘云海 | B32: 202380100524 | C32: 黄平县 | D32: 1004 | E32: 县乡事业单位管理岗位 | F32: =VLOOKUP(B32,[1]成绩册!$C$1:$J$65536,8,0) -> 55.66 | G32: 60% | H32: 53.8 | I32: 40% | J32: 54.92 | K32: 9
A33: 李德城 | B33: 202380100503 | C33: 黄平县 | D33: 1004 | E33: 县乡事业单位管理岗位 | F33: =VLOOKUP(B33,[1]成绩册!$C$1:$J$65536,8,0) -> 61.67 | G33: 60% | I33: 40% | J33: 37.00 | K33: 10
A34: 周志强 | B34: 202380100114 | C34: 黄平县 | D34: 1004 | E34: 县乡事业单位管理岗位 | F34: =VLOOKUP(B34,[1]成绩册!$C$1:$J$65536,8,0) -> 61.36 | G34: 60% | I34: 40% | J34: 36.82 | K34: 11
A35: 韦杨紫平 | B35: 202380100325 | C35: 黄平县 | D35: 1004 | E35: 县乡事业单位管理岗位 | F35: =VLOOKUP(B35,[1]成绩册!$C$1:$J$65536,8,0) -> 55.39 | G35: 60% | I35: 40% | J35: 33.23 | K35: 12
A36: 龙和斌 | B36: 202380100506 | C36: 施秉县 | D36: 1005 | E36: 县乡事业单位管理岗位 | F36: =VLOOKUP(B36,[1]成绩册!$C$1:$J$65536,8,0) -> 66.37 | G36: 60% | H36: 78 | I36: 40% | J36: 71.02 | K36: 1
A37: 姚佳宏 | B37: 202380100427 | C37: 施秉县 | D37: 1005 | E37: 县乡事业单位管理岗位 | F37: =VLOOKUP(B37,[1]成绩册!$C$1:$J$65536,8,0) -> 59.42 | G37: 60% | H37: 75.6 | I37: 40% | J37: 65.89 | K37: 2
A38: 何江涛 | B38: 202380101326 | C38: 施秉县 | D38: 1005 | E38: 县乡事业单位管理岗位 | F38: =VLOOKUP(B38,[1]成绩册!$C$1:$J$65536,8,0) -> 53.97 | G38: 60% | H38: 80.2 | I38: 40% | J38: 64.46 | K38: 3
A39: 邓坤元 | B39: 202380101301 | C39: 施秉县 | D39: 1005 | E39: 县乡事业单位管理岗位 | F39: =VLOOKUP(B39,[1]成绩册!$C$1:$J$65536,8,0) -> 56.19 | G39: 60% | H39: 72.2 | I39: 40% | J39: 62.59 | K39: 4
A40: 杨正贤 | B40: 202380101221 | C40: 施秉县 | D40: 1005 | E40: 县乡事业单位管理岗位 | F40: =VLOOKUP(B40,[1]成绩册!$C$1:$J$65536,8,0) -> 53.93 | G40: 60% | H40: 74.2 | I40: 40% | J40: 62.04 | K40: 5
A41: 张万元 | B41: 202380100803 | C41: 施秉县 | D41: 1005 | E41: 县乡事业单位管理岗位 | F41: =VLOOKUP(B41,[1]成绩册!$C$1:$J$65536,8,0) -> 48.58 | G41: 60% | H41: 73.6 | I41: 40% | J41: 58.59 | K41: 6
A42: 陶国鑫 | B42: 202380100927 | C42: 施秉县 | D42: 1005 | E42: 县乡事业单位管理岗位 | F42: =VLOOKUP(B42,[1]成绩册!$C$1:$J$65536,8,0) -> 50.58 | G42: 60% | H42: 69.8 | I42: 40% | J42: 58.27 | K42: 7
A43: 田汶汶 | B43: 202380100109 | C43: 施秉县 | D43: 1005 | E43: 县乡事业单位管理岗位 | F43: =VLOOKUP(B43,[1]成绩册!$C$1:$J$65536,8,0) -> 45.28 | G43: 60% | H43: 70.6 | I43: 40% | J43: 55.41 | K43: 8
A44: 彭琳鸿 | B44: 202380100124 | C44: 施秉县 | D44: 1005 | E44: 县乡事业单位管理岗位 | F44: =VLOOKUP(B44,[1]成绩册!$C$1:$J$65536,8,0) -> 45.18 | G44: 60% | H44: 64 | I44: 40% | J44: 52.71 | K44: 9
A45: 袁俊宏 | B45: 202380101414 | C45: 施秉县 | D45: 1005 | E45: 县乡事业单位管理岗位 | F45: =VLOOKUP(B45,[1]成绩册!$C$1:$J$65536,8,0) -> 63.25 | G45: 60% | I45: 40% | J45: 37.95 | K45: 10
A46: 王明超 | B46: 202380100107 | C46: 施秉县 | D46: 1005 | E46: 县乡事业单位管理岗位 | F46: =VLOOKUP(B46,[1]成绩册!$C$1:$J$65536,8,0) -> 57.52 | G46: 60% | I46: 40% | J46: 34.51 | K46: 11
A47: 邓兴宇 | B47: 202380100314 | C47: 施秉县 | D47: 1005 | E47: 县乡事业单位管理岗位 | F47: =VLOOKUP(B47,[1]成绩册!$C$1:$J$65536,8,0) -> 55.90 | G47: 60% | I47: 40% | J47: 33.54 | K47: 12
A48: 黄仁华 | B48: 202380101123 | C48: 镇远县 | D48: 1006 | E48: 县乡事业单位管理岗位 | F48: =VLOOKUP(B48,[1]成绩册!$C$1:$J$65536,8,0) -> 67.00 | G48: 60% | H48: 77.2 | I48: 40% | J48: 71.08 | K48: 1
A49: 文友华 | B49: 202380101117 | C49: 镇远县 | D49: 1006 | E49: 县乡事业单位管理岗位 | F49: =VLOOKUP(B49,[1]成绩册!$C$1:$J$65536,8,0) -> 56.43 | G49: 60% | H49: 76.4 | I49: 40% | J49: 64.42 | K49: 2
A50: 田永同 | B50: 202380100925 | C50: 镇远县 | D50: 1006 | E50: 县乡事业单位管理岗位 | F50: =VLOOKUP(B50,[1]成绩册!$C$1:$J$65536,8,0) -> 55.46 | G50: 60% | H50: 76.6 | I50: 40% | J50: 63.92 | K50: 3
A51: 石宗力 | B51: 202380101303 | C51: 镇远县 | D51: 1006 | E51: 县乡事业单位管理岗位 | F51: =VLOOKUP(B51,[1]成绩册!$C$1:$J$65536,8,0) -> 48.62 | G51: 60% | H51: 74.6 | I51: 40% | J51: 59.01 | K51: 4
A52: 杨欢 | B52: 202380100407 | C52: 镇远县 | D52: 1006 | E52: 县乡事业单位管理岗位 | F52: =VLOOKUP(B52,[1]成绩册!$C$1:$J$65536,8,0) -> 44.00 | G52: 60% | H52: 70.2 | I52: 40% | J52: 54.48 | K52: 5
A53: 龙杰 | B53: 202380101017 | C53: 镇远县 | D53: 1006 | E53: 县乡事业单位管理岗位 | F53: =VLOOKUP(B53,[1]成绩册!$C$1:$J$65536,8,0) -> 43.02 | G53: 60% | H53: 0 | I53: 40% | L53: 缺考
A54: 苏少杰 | B54: 202380100812 | C54: 岑巩县 | D54: 1007 | E54: 县乡事业单位管理岗位 | F54: =VLOOKUP(B54,[1]成绩册!$C$1:$J$65536,8,0) -> 72.17 | G54: 60% | H54: 82.4 | I54: 40% | J54: =F54*G54+H54*I54 -> 76.26 | K54: 1
A55: 胡雨杭 | B55: 202380100729 | C55: 岑巩县 | D55: 1007 | E55: 县乡事业单位管理岗位 | F55: =VLOOKUP(B55,[1]成绩册!$C$1:$J$65536,8,0) -> 69.75 | G55: 60% | H55: 81.4 | I55: 40% | J55: 74.41 | K55: 2
A56: 周文岭 | B56: 202380100629 | C56: 岑巩县 | D56: 1007 | E56: 县乡事业单位管理岗位 | F56: =VLOOKUP(B56,[1]成绩册!$C$1:$J$65536,8,0) -> 65.79 | G56: 60% | H56: 79.8 | I56: 40% | J56: 71.39 | K56: 3
A57: 杨智 | B57: 202380101426 | C57: 岑巩县 | D57: 1007 | E57: 县乡事业单位管理岗位 | F57: =VLOOKUP(B57,[1]成绩册!$C$1:$J$65536,8,0) -> 64.36 | G57: 60% | H57: 80.8 | I57: 40% | J57: 70.94 | K57: 4
A58: 袁荣 | B58: 202380101307 | C58: 岑巩县 | D58: 1007 | E58: 县乡事业单位管理岗位 | F58: =VLOOKUP(B58,[1]成绩册!$C$1:$J$65536,8,0) -> 63.50 | G58: 60% | H58: 81.8 | I58: 40% | J58: 70.82 | K58: 5
A59: 姚苗林 | B59: 202380100309 | C59: 岑巩县 | D59: 1007 | E59: 县乡事业单位管理岗位 | F59: =VLOOKUP(B59,[1]成绩册!$C$1:$J$65536,8,0) -> 65.10 | G59: 60% | H59: 77 | I59: 40% | J59: 69.86 | K59: 6
A60: 何伟 | B60: 202380100608 | C60: 岑巩县 | D60: 1007 | E60: 县乡事业单位管理岗位 | F60: =VLOOKUP(B60,[1]成绩册!$C$1:$J$65536,8,0) -> 64.74 | G60: 60% | H60: 76.6 | I60: 40% | J60: 69.48 | K60: 7
A61: 罗芳龙 | B61: 202380101003 | C61: 岑巩县 | D61: 1007 | E61: 县乡事业单位管理岗位 | F61: =VLOOKUP(B61,[1]成绩册!$C$1:$J$65536,8,0) -> 67.34 | G61: 60% | H61: 0 | I61: 40% | L61: 缺考
A62: 田洪超 | B62: 202380100920 | C62: 岑巩县 | D62: 1007 | E62: 县乡事业单位管理岗位 | F62: =VLOOKUP(B62,[1]成绩册!$C$1:$J$65536,8,0) -> 65.96 | G62: 60% | H62: 0 | I62: 40% | L62: 缺考
A63: 黄民望 | B63: 202380101310 | C63: 三穗县 | D63: 1008 | E63: 县乡事业单位管理岗位 | F63: =VLOOKUP(B63,[1]成绩册!$C$1:$J$65536,8,0) -> 73.72 | G63: 60% | H63: 75.8 | I63: 40% | J63: =F63*G63+H63*I63 -> 74.55 | K63: 1
A64: 杨智清 | B64: 202380101421 | C64: 三穗县 | D64: 1008 | E64: 县乡事业单位管理岗位 | F64: =VLOOKUP(B64,[1]成绩册!$C$1:$J$65536,8,0) -> 59.92 | G64: 60% | H64: 72.4 | I64: 40% | J64: 64.91 | K64: 2
A65: 姚禹 | B65: 202380101105 | C65: 三穗县 | D65: 1008 | E65: 县乡事业单位管理岗位 | F65: =VLOOKUP(B65,[1]成绩册!$C$1:$J$65536,8,0) -> 54.32 | G65: 60% | H65: 71.8 | I65: 40% | J65: 61.31 | K65: 3
A66: 吴港 | B66: 202380100408 | C66: 天柱县 | D66: 1009 | E66: 县乡事业单位管理岗位 | F66: =VLOOKUP(B66,[1]成绩册!$C$1:$J$65536,8,0) -> 59.90 | G66: 60% | H66: 82 | I66: 40% | J66: 68.74 | K66: 1
A67: 杨长上 | B67: 202380100726 | C67: 天柱县 | D67: 1009 | E67: 县乡事业单位管理岗位 | F67: =VLOOKUP(B67,[1]成绩册!$C$1:$J$65536,8,0) -> 60.96 | G67: 60% | H67: 78.8 | I67: 40% | J67: 68.10 | K67: 2
A68: 杨欢 | B68: 202380100516 | C68: 天柱县 | D68: 1009 | E68: 县乡事业单位管理岗位 | F68: =VLOOKUP(B68,[1]成绩册!$C$1:$J$65536,8,0) -> 40.74 | G68: 60% | H68: 77 | I68: 40% | J68: 55.24 | K68: 3
A69: 杨文澄 | B69: 202380101210 | C69: 天柱县 | D69: 1009 | E69: 县乡事业单位管理岗位 | F69: =VLOOKUP(B69,[1]成绩册!$C$1:$J$65536,8,0) -> 39.94 | G69: 60% | H69: 73.8 | I69: 40% | J69: 53.48 | K69: 4
A70: 罗大钊 | B70: 202380100113 | C70: 天柱县 | D70: 1009 | E70: 县乡事业单位管理岗位 | F70: =VLOOKUP(B70,[1]成绩册!$C$1:$J$65536,8,0) -> 39.88 | G70: 60% | H70: 72.8 | I70: 40% | J70: 53.05 | K70: 5
A71: 龙灿 | B71: 202380100724 | C71: 天柱县 | D71: 1009 | E71: 县乡事业单位管理岗位 | F71: =VLOOKUP(B71,[1]成绩册!$C$1:$J$65536,8,0) -> 41.50 | G71: 60% | H71: 69.6 | I71: 40% | J71: 52.74 | K71: 6
A72: 龙知良 | B72: 202380100228 | C72: 锦屏县 | D72: 1010 | E72: 县乡事业单位管理岗位 | F72: =VLOOKUP(B72,[1]成绩册!$C$1:$J$65536,8,0) -> 61.02 | G72: 60% | H72: 73.6 | I72: 40% | J72: 66.05 | K72: 1
A73: 欧鑫 | B73: 202380100520 | C73: 锦屏县 | D73: 1010 | E73: 县乡事业单位管理岗位 | F73: =VLOOKUP(B73,[1]成绩册!$C$1:$J$65536,8,0) -> 58.68 | G73: 60% | H73: 76.4 | I73: 40% | J73: 65.77 | K73: 2
A74: 杨垚 | B74: 202380100811 | C74: 锦屏县 | D74: 1010 | E74: 县乡事业单位管理岗位 | F74: =VLOOKUP(B74,[1]成绩册!$C$1:$J$65536,8,0) -> 57.74 | G74: 60% | H74: 74 | I74: 40% | J74: 64.24 | K74: 3
A75: 吴谋涛 | B75: 202380101118 | C75: 锦屏县 | D75: 1010 | E75: 县乡事业单位管理岗位 | F75: =VLOOKUP(B75,[1]成绩册!$C$1:$J$65536,8,0) -> 56.80 | G75: 60% | H75: 75.2 | I75: 40% | J75: 64.16 | K75: 4
A76: 张芳嵩 | B76: 202380101022 | C76: 锦屏县 | D76: 1010 | E76: 县乡事业单位管理岗位 | F76: =VLOOKUP(B76,[1]成绩册!$C$1:$J$65536,8,0) -> 58.19 | G76: 60% | H76: 71.8 | I76: 40% | J76: 63.63 | K76: 5
A77: 杨强 | B77: 202380100628 | C77: 锦屏县 | D77: 1010 | E77: 县乡事业单位管理岗位 | F77: =VLOOKUP(B77,[1]成绩册!$C$1:$J$65536,8,0) -> 50.69 | G77: 60% | H77: 70.6 | I77: 40% | J77: 58.65 | K77: 6
A78: 谢廷洲 | B78: 202380100809 | C78: 黎平县 | D78: 1011 | E78: 县乡事业单位管理岗位 | F78: =VLOOKUP(B78,[1]成绩册!$C$1:$J$65536,8,0) -> 64.21 | G78: 60% | H78: 77.6 | I78: 40% | J78: 69.57 | K78: 1
A79: 吴洋 | B79: 202380100429 | C79: 黎平县 | D79: 1011 | E79: 县乡事业单位管理岗位 | F79: =VLOOKUP(B79,[1]成绩册!$C$1:$J$65536,8,0) -> 58.87 | G79: 60% | H79: 79.4 | I79: 40% | J79: 67.08 | K79: 2
A80: 吴定凯 | B80: 202380101106 | C80: 黎平县 | D80: 1011 | E80: 县乡事业单位管理岗位 | F80: =VLOOKUP(B80,[1]成绩册!$C$1:$J$65536,8,0) -> 56.12 | G80: 60% | H80: 81 | I80: 40% | J80: 66.07 | K80: 3
A81: 吴丙炜 | B81: 202380100116 | C81: 黎平县 | D81: 1011 | E81: 县乡事业单位管理岗位 | F81: =VLOOKUP(B81,[1]成绩册!$C$1:$J$65536,8,0) -> 55.29 | G81: 60% | H81: 81 | I81: 40% | J81: 65.57 | K81: 4
A82: 石浩 | B82: 202380101108 | C82: 黎平县 | D82: 1011 | E82: 县乡事业单位管理岗位 | F82: =VLOOKUP(B82,[1]成绩册!$C$1:$J$65536,8,0) -> 58.75 | G82: 60% | H82: 75 | I82: 40% | J82: 65.25 | K82: 5
A83: 谢德明 | B83: 202380101319 | C83: 黎平县 | D83: 1011 | E83: 县乡事业单位管理岗位 | F83: =VLOOKUP(B83,[1]成绩册!$C$1:$J$65536,8,0) -> 56.25 | G83: 60% | H83: 76.6 | I83: 40% | J83: 64.39 | K83: 6
A84: 张泽禄 | B84: 202380100126 | C84: 黎平县 | D84: 1011 | E84: 县乡事业单位管理岗位 | F84: =VLOOKUP(B84,[1]成绩册!$C$1:$J$65536,8,0) -> 58.26 | G84: 60% | H84: 73.2 | I84: 40% | J84: 64.24 | K84: 7
A85: 吴正金 | B85: 202380101322 | C85: 黎平县 | D85: 1011 | E85: 县乡事业单位管理岗位 | F85: =VLOOKUP(B85,[1]成绩册!$C$1:$J$65536,8,0) -> 52.60 | G85: 60% | H85: 80 | I85: 40% | J85: 63.56 | K85: 8
A86: 石家和 | B86: 202380100330 | C86: 黎平县 | D86: 1011 | E86: 县乡事业单位管理岗位 | F86: =VLOOKUP(B86,[1]成绩册!$C$1:$J$65536,8,0) -> 55.16 | G86: 60% | H86: 75.6 | I86: 40% | J86: 63.34 | K86: 9
A87: 杨开焱 | B87: 202380100411 | C87: 黎平县 | D87: 1011 | E87: 县乡事业单位管理岗位 | F87: =VLOOKUP(B87,[1]成绩册!$C$1:$J$65536,8,0) -> 56.91 | G87: 60% | H87: 72.6 | I87: 40% | J87: 63.19 | K87: 10
A88: 文燕朋 | B88: 202380100305 | C88: 黎平县 | D88: 1011 | E88: 县乡事业单位管理岗位 | F88: =VLOOKUP(B88,[1]成绩册!$C$1:$J$65536,8,0) -> 55.84 | G88: 60% | H88: 72.6 | I88: 40% | J88: 62.54 | K88: 11
A89: 吴宏杨 | B89: 202380100623 | C89: 黎平县 | D89: 1011 | E89: 县乡事业单位管理岗位 | F89: =VLOOKUP(B89,[1]成绩册!$C$1:$J$65536,8,0) -> 53.94 | G89: 60% | H89: 72.6 | I89: 40% | J89: 61.40 | K89: 12
A90: 梁忠意 | B90: 202380100310 | C90: 黎平县 | D90: 1011 | E90: 县乡事业单位管理岗位 | F90: =VLOOKUP(B90,[1]成绩册!$C$1:$J$65536,8,0) -> 55.66 | G90: 60% | H90: 69.2 | I90: 40% | J90: 61.08 | K90: 13
A91: 石义林 | B91: 202380101011 | C91: 黎平县 | D91: 1011 | E91: 县乡事业单位管理岗位 | F91: =VLOOKUP(B91,[1]成绩册!$C$1:$J$65536,8,0) -> 49.51 | G91: 60% | H91: 72.4 | I91: 40% | J91: 58.67 | K91: 14
A92: 李万航 | B92: 202380100422 | C92: 黎平县 | D92: 1011 | E92: 县乡事业单位管理岗位 | F92: =VLOOKUP(B92,[1]成绩册!$C$1:$J$65536,8,0) -> 49.67 | G92: 60% | H92: 72 | I92: 40% | J92: 58.60 | K92: 15
A93: 曾令驰 | B93: 202380101218 | C93: 黎平县 | D93: 1011 | E93: 县乡事业单位管理岗位 | F93: =VLOOKUP(B93,[1]成绩册!$C$1:$J$65536,8,0) -> 50.28 | G93: 60% | H93: 70.4 | I93: 40% | J93: 58.33 | K93: 16
A94: 陆勇江 | B94: 202380101002 | C94: 黎平县 | D94: 1011 | E94: 县乡事业单位管理岗位 | F94: =VLOOKUP(B94,[1]成绩册!$C$1:$J$65536,8,0) -> 54.96 | G94: 60% | I94: 40% | J94: 32.98 | K94: 17
A95: 吴厚平 | B95: 202380101219 | C95: 黎平县 | D95: 1011 | E95: 县乡事业单位管理岗位 | F95: =VLOOKUP(B95,[1]成绩册!$C$1:$J$65536,8,0) -> 52.68 | G95: 60% | I95: 40% | J95: 31.61 | K95: 18
A96: 徐拯 | B96: 202380100417 | C96: 从江县 | D96: 1012 | E96: 县乡事业单位管理岗位 | F96: =VLOOKUP(B96,[1]成绩册!$C$1:$J$65536,8,0) -> 54.27 | G96: 60% | H96: 80.8 | I96: 40% | J96: 64.88 | K96: 1
A97: 罗昌安 | B97: 202380100213 | C97: 从江县 | D97: 1012 | E97: 县乡事业单位管理岗位 | F97: =VLOOKUP(B97,[1]成绩册!$C$1:$J$65536,8,0) -> 55.13 | G97: 60% | H97: 73.2 | I97: 40% | J97: 62.36 | K97: 2
A98: 王老平 | B98: 202380101402 | C98: 从江县 | D98: 1012 | E98: 县乡事业单位管理岗位 | F98: =VLOOKUP(B98,[1]成绩册!$C$1:$J$65536,8,0) -> 50.32 | G98: 60% | H98: 78.2 | I98: 40% | J98: 61.47 | K98: 3
A99: 潘玉堂 | B99: 202380101114 | C99: 从江县 | D99: 1012 | E99: 县乡事业单位管理岗位 | F99: =VLOOKUP(B99,[1]成绩册!$C$1:$J$65536,8,0) -> 51.82 | G99: 60% | H99: 72.2 | I99: 40% | J99: 59.97 | K99: 4
A100: 耿金华 | B100: 202380100514 | C100: 从江县 | D100: 1012 | E100: 县乡事业单位管理岗位 | F100: =VLOOKUP(B100,[1]成绩册!$C$1:$J$65536,8,0) -> 45.57 | G100: 60% | H100: 73 | I100: 40% | J100: 56.54 | K100: 5
A101: 杨明强 | B101: 202380100302 | C101: 从江县 | D101: 1012 | E101: 县乡事业单位管理岗位 | F101: =VLOOKUP(B101,[1]成绩册!$C$1:$J$65536,8,0) -> 46.56 | G101: 60% | H101: 66 | I101: 40% | J101: 54.34 | K101: 6
A102: 吴运权 | B102: 202380100106 | C102: 从江县 | D102: 1012 | E102: 县乡事业单位管理岗位 | F102: =VLOOKUP(B102,[1]成绩册!$C$1:$J$65536,8,0) -> 35.64 | G102: 60% | H102: 76.6 | I102: 40% | J102: 52.02 | K102: 7
A103: 贺能龙 | B103: 202380101103 | C103: 从江县 | D103: 1012 | E103: 县乡事业单位管理岗位 | F103: =VLOOKUP(B103,[1]成绩册!$C$1:$J$65536,8,0) -> 54.57 | G103: 60% | H103: 0 | I103: 40% | L103: 放弃
A104: 舒孝华 | B104: 202380100404 | C104: 榕江县 | D104: 1013 | E104: 县乡事业单位管理岗位 | F104: =VLOOKUP(B104,[1]成绩册!$C$1:$J$65536,8,0) -> 70.05 | G104: 60% | H104: 77.4 | I104: 40% | J104: =F104*G104+H104*I104 -> 72.99 | K104: 1
A105: 杨喜林 | B105: 202380100708 | C105: 榕江县 | D105: 1013 | E105: 县乡事业单位管理岗位 | F105: =VLOOKUP(B105,[1]成绩册!$C$1:$J$65536,8,0) -> 70.54 | G105: 60% | H105: 75.6 | I105: 40% | J105: 72.56 | K105: 2
A106: 吴家康 | B106: 202380101125 | C106: 榕江县 | D106: 1013 | E106: 县乡事业单位管理岗位 | F106: =VLOOKUP(B106,[1]成绩册!$C$1:$J$65536,8,0) -> 69.52 | G106: 60% | H106: 73 | I106: 40% | J106: 70.91 | K106: 3
A107: 毛晨晨 | B107: 202380100718 | C107: 榕江县 | D107: 1013 | E107: 县乡事业单位管理岗位 | F107: =VLOOKUP(B107,[1]成绩册!$C$1:$J$65536,8,0) -> 64.73 | G107: 60% | H107: 80 | I107: 40% | J107: 70.84 | K107: 4
A108: 潘星吉 | B108: 202380100419 | C108: 榕江县 | D108: 1013 | E108: 县乡事业单位管理岗位 | F108: =VLOOKUP(B108,[1]成绩册!$C$1:$J$65536,8,0) -> 64.47 | G108: 60% | H108: 79.6 | I108: 40% | J108: 70.52 | K108: 5
A109: 邓鹏鹏 | B109: 202380101329 | C109: 榕江县 | D109: 1013 | E109: 县乡事业单位管理岗位 | F109: =VLOOKUP(B109,[1]成绩册!$C$1:$J$65536,8,0) -> 64.56 | G109: 60% | H109: 77 | I109: 40% | J109: 69.54 | K109: 6
A110: 姜凯 | B110: 202380100509 | C110: 榕江县 | D110: 1013 | E110: 县乡事业单位管理岗位 | F110: =VLOOKUP(B110,[1]成绩册!$C$1:$J$65536,8,0) -> 64.24 | G110: 60% | H110: 75 | I110: 40% | J110: 68.54 | K110: 7
A111: 姜永祥 | B111: 202380100815 | C111: 榕江县 | D111: 1013 | E111: 县乡事业单位管理岗位 | F111: =VLOOKUP(B111,[1]成绩册!$C$1:$J$65536,8,0) -> 63.18 | G111: 60% | H111: 74.6 | I111: 40% | J111: 67.75 | K111: 8
A112: 何世龙 | B112: 202380100827 | C112: 榕江县 | D112: 1013 | E112: 县乡事业单位管理岗位 | F112: =VLOOKUP(B112,[1]成绩册!$C$1:$J$65536,8,0) -> 60.35 | G112: 60% | H112: 74.6 | I112: 40% | J112: 66.05 | K112: 9
A113: 林安灵 | B113: 202380100225 | C113: 榕江县 | D113: 1013 | E113: 县乡事业单位管理岗位 | F113: =VLOOKUP(B113,[1]成绩册!$C$1:$J$65536,8,0) -> 58.33 | G113: 60% | H113: 71.4 | I113: 40% | J113: 63.56 | K113: 10
A114: 杨成宇 | B114: 202380101209 | C114: 榕江县 | D114: 1013 | E114: 县乡事业单位管理岗位 | F114: =VLOOKUP(B114,[1]成绩册!$C$1:$J$65536,8,0) -> 55.02 | G114: 60% | H114: 76.2 | I114: 40% | J114: 63.49 | K114: 11
A115: 杨朗 | B115: 202380100615 | C115: 榕江县 | D115: 1013 | E115: 县乡事业单位管理岗位 | F115: =VLOOKUP(B115,[1]成绩册!$C$1:$J$65536,8,0) -> 56.25 | G115: 60% | H115: 71.6 | I115: 40% | J115: 62.39 | K115: 12
A116: 吴松林 | B116: 202380100115 | C116: 榕江县 | D116: 1013 | E116: 县乡事业单位管理岗位 | F116: =VLOOKUP(B116,[1]成绩册!$C$1:$J$65536,8,0) -> 53.42 | G116: 60% | H116: 72.4 | I116: 40% | J116: 61.01 | K116: 13
A117: 潘涛 | B117: 202380100902 | C117: 榕江县 | D117: 1013 | E117: 县乡事业单位管理岗位 | F117: =VLOOKUP(B117,[1]成绩册!$C$1:$J$65536,8,0) -> 53.62 | G117: 60% | H117: 71.8 | I117: 40% | J117: 60.89 | K117: 14
A118: 姚瑞 | B118: 202380100601 | C118: 榕江县 | D118: 1013 | E118: 县乡事业单位管理岗位 | F118: =VLOOKUP(B118,[1]成绩册!$C$1:$J$65536,8,0) -> 51.58 | G118: 60% | H118: 72.2 | I118: 40% | J118: 59.83 | K118: 15
A119: 李浩源 | B119: 202380100308 | C119: 榕江县 | D119: 1013 | E119: 县乡事业单位管理岗位 | F119: =VLOOKUP(B119,[1]成绩册!$C$1:$J$65536,8,0) -> 52.09 | G119: 60% | H119: 70 | I119: 40% | J119: 59.25 | K119: 16
A120: 陆胜锋 | B120: 202380100226 | C120: 榕江县 | D120: 1013 | E120: 县乡事业单位管理岗位 | F120: =VLOOKUP(B120,[1]成绩册!$C$1:$J$65536,8,0) -> 51.16 | G120: 60% | H120: 66.4 | I120: 40% | J120: 57.26 | K120: 17
A121: 吴昌威 | B121: 202380100918 | C121: 榕江县 | D121: 1013 | E121: 县乡事业单位管理岗位 | F121: =VLOOKUP(B121,[1]成绩册!$C$1:$J$65536,8,0) -> 59.88 | G121: 60% | H121: 0 | I121: 40% | L121: 缺考
A122: 石洋洋 | B122: 202380100229 | C122: 榕江县 | D122: 1013 | E122: 县乡事业单位管理岗位 | F122: =VLOOKUP(B122,[1]成绩册!$C$1:$J$65536,8,0) -> 56.65 | G122: 60% | H122: 0 | I122: 40% | L122: 缺考
A123: 李元吉 | B123: 202380101312 | C123: 榕江县 | D123: 1013 | E123: 县乡事业单位管理岗位 | F123: =VLOOKUP(B123,[1]成绩册!$C$1:$J$65536,8,0) -> 56.60 | G123: 60% | H123: 0 | I123: 40% | L123: 缺考
A124: 司红吉 | B124: 202380101423 | C124: 榕江县 | D124: 1013 | E124: 县乡事业单位管理岗位 | F124: =VLOOKUP(B124,[1]成绩册!$C$1:$J$65536,8,0) -> 55.37 | G124: 60% | H124: 0 | I124: 40% | L124: 缺考
A125: 杨智 | B125: 202380101224 | C125: 榕江县 | D125: 1013 | E125: 县乡事业单位管理岗位 | F125: =VLOOKUP(B125,[1]成绩册!$C$1:$J$65536,8,0) -> 53.60 | G125: 60% | H125: 0 | I125: 40% | L125: 缺考
A126: 杨州 | B126: 202380100624 | C126: 榕江县 | D126: 1013 | E126: 县乡事业单位管理岗位 | F126: =VLOOKUP(B126,[1]成绩册!$C$1:$J$65536,8,0) -> 51.60 | G126: 60% | H126: 0 | I126: 40% | L126: 缺考
A127: 潘世钥 | B127: 202380101217 | C127: 榕江县 | D127: 1013 | E127: 县乡事业单位管理岗位 | F127: =VLOOKUP(B127,[1]成绩册!$C$1:$J$65536,8,0) -> 50.86 | G127: 60% | H127: 0 | I127: 40% | L127: 缺考
A128: 余蝴蝶 | B128: 202380101222 | C128: 雷山县 | D128: 1014 | E128: 县乡事业单位管理岗位 | F128: =VLOOKUP(B128,[1]成绩册!$C$1:$J$65536,8,0) -> 60.94 | G128: 60% | H128: 79.8 | I128: 40% | J128: =F128*G128+H128*I128 -> 68.48 | K128: 1
A129: 龙永茂 | B129: 202380100523 | C129: 雷山县 | D129: 1014 | E129: 县乡事业单位管理岗位 | F129: =VLOOKUP(B129,[1]成绩册!$C$1:$J$65536,8,0) -> 63.67 | G129: 60% | H129: 74.6 | I129: 40% | J129: =F129*G129+H129*I129 -> 68.04 | K129: 2
A130: 石安 | B130: 202380100922 | C130: 雷山县 | D130: 1014 | E130: 县乡事业单位管理岗位 | F130: =VLOOKUP(B130,[1]成绩册!$C$1:$J$65536,8,0) -> 49.89 | G130: 60% | H130: 73.6 | I130: 40% | J130: =F130*G130+H130*I130 -> 59.37 | K130: 3
A131: 杨志刚 | B131: 202380100222 | C131: 雷山县 | D131: 1014 | E131: 县乡事业单位管理岗位 | F131: =VLOOKUP(B131,[1]成绩册!$C$1:$J$65536,8,0) -> 47.74 | G131: 60% | H131: 74.6 | I131: 40% | J131: =F131*G131+H131*I131 -> 58.48 | K131: 4
A132: 杨子江 | B132: 202380100921 | C132: 雷山县 | D132: 1014 | E132: 县乡事业单位管理岗位 | F132: =VLOOKUP(B132,[1]成绩册!$C$1:$J$65536,8,0) -> 53.95 | G132: 60% | H132: 0 | I132: 40% | L132: 缺考
A133: 李金金 | B133: 202380100329 | C133: 雷山县 | D133: 1014 | E133: 县乡事业单位管理岗位 | F133: =VLOOKUP(B133,[1]成绩册!$C$1:$J$65536,8,0) -> 49.69 | G133: 60% | H133: 0 | I133: 40% | L133: 缺考
A134: 李小军 | B134: 202380100428 | C134: 台江县 | D134: 1015 | E134: 县乡事业单位管理岗位 | F134: =VLOOKUP(B134,[1]成绩册!$C$1:$J$65536,8,0) -> 61.40 | G134: 60% | H134: 80.2 | I134: 40% | J134: =F134*G134+H134*I134 -> 68.92 | K134: 1
A135: 李泽昆 | B135: 202380100423 | C135: 台江县 | D135: 1015 | E135: 县乡事业单位管理岗位 | F135: =VLOOKUP(B135,[1]成绩册!$C$1:$J$65536,8,0) -> 56.36 | G135: 60% | H135: 81 | I135: 40% | J135: 66.22 | K135: 2
A136: 杨伟强 | B136: 202380101321 | C136: 台江县 | D136: 1015 | E136: 县乡事业单位管理岗位 | F136: =VLOOKUP(B136,[1]成绩册!$C$1:$J$65536,8,0) -> 52.86 | G136: 60% | H136: 77.2 | I136: 40% | J136: 62.60 | K136: 3
A137: 侯江 | B137: 202380101115 | C137: 台江县 | D137: 1015 | E137: 县乡事业单位管理岗位 | F137: =VLOOKUP(B137,[1]成绩册!$C$1:$J$65536,8,0) -> 55.94 | G137: 60% | H137: 71.4 | I137: 40% | J137: 62.12 | K137: 4
A138: 杨天哥 | B138: 202380100810 | C138: 台江县 | D138: 1015 | E138: 县乡事业单位管理岗位 | F138: =VLOOKUP(B138,[1]成绩册!$C$1:$J$65536,8,0) -> 54.93 | G138: 60% | H138: 68.8 | I138: 40% | J138: 60.48 | K138: 5
A139: 李家成 | B139: 202380100315 | C139: 台江县 | D139: 1015 | E139: 县乡事业单位管理岗位 | F139: =VLOOKUP(B139,[1]成绩册!$C$1:$J$65536,8,0) -> 53.75 | G139: 60% | H139: 69.2 | I139: 40% | J139: 59.93 | K139: 6
A140: 张朝程 | B140: 202380100923 | C140: 剑河县 | D140: 1016 | E140: 县乡事业单位管理岗位 | F140: =VLOOKUP(B140,[1]成绩册!$C$1:$J$65536,8,0) -> 63.38 | G140: 60% | H140: 83.2 | I140: 40% | J140: 71.31 | K140: 1
A141: 杨再锋 | B141: 202380101308 | C141: 剑河县 | D141: 1016 | E141: 县乡事业单位管理岗位 | F141: =VLOOKUP(B141,[1]成绩册!$C$1:$J$65536,8,0) -> 55.77 | G141: 60% | H141: 78 | I141: 40% | J141: 64.66 | K141: 2
A142: 吴胜勇 | B142: 202380100418 | C142: 剑河县 | D142: 1016 | E142: 县乡事业单位管理岗位 | F142: =VLOOKUP(B142,[1]成绩册!$C$1:$J$65536,8,0) -> 54.84 | G142: 60% | H142: 76.6 | I142: 40% | J142: 63.54 | K142: 3
A143: 刘海东 | B143: 202380100219 | C143: 剑河县 | D143: 1016 | E143: 县乡事业单位管理岗位 | F143: =VLOOKUP(B143,[1]成绩册!$C$1:$J$65536,8,0) -> 54.51 | G143: 60% | H143: 75.6 | I143: 40% | J143: 62.95 | K143: 4
A144: 吴光坤 | B144: 202380100526 | C144: 剑河县 | D144: 1016 | E144: 县乡事业单位管理岗位 | F144: =VLOOKUP(B144,[1]成绩册!$C$1:$J$65536,8,0) -> 54.13 | G144: 60% | H144: 0 | I144: 40% | L144: 缺考
A145: 邰秀保 | B145: 202380101112 | C145: 剑河县 | D145: 1016 | E145: 县乡事业单位管理岗位 | F145: =VLOOKUP(B145,[1]成绩册!$C$1:$J$65536,8,0) -> 52.35 | G145: 60% | H145: 0 | I145: 40% | L145: 缺考
A146: 杨兴鑫 | B146: 202380101127 | C146: 黔东南州文化旅游投资（集团）有限责任公司子公司 | D146: 2002 | E146: 专员 | F146: =VLOOKUP(B146,[1]成绩册!$C$1:$J$65536,8,0) -> 48.32 | G146: 60% | H146: 75.2 | I146: 40% | J146: =F146*G146+H146*I146 -> 59.07 | K146: 1
A147: 杨钧 | B147: 202380101225 | C147: 黔东南州文化旅游投资（集团）有限责任公司子公司 | D147: 2002 | E147: 专员 | F147: =VLOOKUP(B147,[1]成绩册!$C$1:$J$65536,8,0) -> 66.98 | G147: 60% | H147: 0 | I147: 40% | L147: 缺考
A148: 徐宸立 | B148: 202380100121 | C148: 贵州中建伟业建设（集团）有限责任公司 | D148: 2006 | E148: 项目管理人员 | F148: =VLOOKUP(B148,[1]成绩册!$C$1:$J$65536,8,0) -> 51.52 | G148: 60% | H148: 76 | I148: 40% | J148: =F148*G148+H148*I148 -> 61.31 | K148: 1
A149: 祖俊 | B149: 202380100619 | C149: 贵州中建伟业建设（集团）有限责任公司 | D149: 2006 | E149: 项目管理人员 | F149: =VLOOKUP(B149,[1]成绩册!$C$1:$J$65536,8,0) -> 52.80 | G149: 60% | H149: 74 | I149: 40% | J149: =F149*G149+H149*I149 -> 61.28 | K149: 2
A150: 李灵康 | B150: 202380101323 | C150: 贵州中建伟业建设（集团）有限责任公司 | D150: 2006 | E150: 项目管理人员 | F150: =VLOOKUP(B150,[1]成绩册!$C$1:$J$65536,8,0) -> 52.08 | G150: 60% | H150: 0 | I150: 40% | L150: 缺考
